bitfinex/quotes_ETHUSD_20251214
["timestamp","ask_amount","ask_price","bid_price","bid_amount"]
[1765703995417,0.8453529,3113.7,3113.6,0.4741]
[1765703997348,0.3980529,3113.7,3113.6,0.4741]
[1765704001951,0.3980529,3113.7,3113.6,3.68581634]
[1765704002156,0.2998529,3113.7,3113.6,4.15921634]
[1765704003736,0.2998529,3113.7,3113.6,4.61251634]
[1765704004258,0.2998529,3113.7,3113.6,0.9475]
[1765704004758,0.2998529,3113.7,3113.6,0.4741]
[1765704005536,0.001,3113.8,3113.6,0.4741]
[1765704005743,0.29994214,3113.7,3113.6,0.4741]
[1765704005942,0.37964214,3113.7,3113.6,0.4741]
[1765704007363,0.29994214,3113.7,3113.6,0.4741]
[1765704007861,0.29994214,3113.7,3113.6,3.68581634]
[1765704012233,0.29994214,3113.7,3113.6,4.15921634]
[1765704013157,0.29994214,3113.7,3113.6,4.61251634]
[1765704013340,0.29994214,3113.7,3113.6,4.15921634]
[1765704015950,0.29994214,3113.7,3113.6,4.61251634]
[1765704016977,0.29994214,3113.7,3113.6,8.94581615]
[1765704017176,0.001,3113.8,3113.6,8.49251615]
[1765704017879,0.001,3113.8,3113.6,4.15921634]
[1765704018171,0.001,3113.8,3113.7,0.506]
[1765704018466,0.001,3113.8,3113.7,1.56087529]
[1765704018770,0.001,3113.8,3113.7,2.01417529]
[1765704019268,0.001,3113.8,3113.7,4.19201319]
[1765704019438,0.0807,3113.8,3113.7,3.71861319]
[1765704024343,0.001,3113.8,3113.7,4.19201319]
[1765704024674,0.001,3113.8,3113.7,4.66581319]
[1765704024894,0.001,3113.8,3113.7,5.91941211]
[1765704025192,0.001,3113.8,3113.7,6.46777127]
[1765704034083,0.001,3113.8,3113.7,5.41349598]
[1765704035078,0.001,3113.8,3113.7,5.86699598]
[1765704036083,0.001,3113.8,3113.7,5.41349598]
[1765704037486,0.001,3113.8,3113.7,5.86699598]
[1765704040864,0.001,3113.8,3113.7,4.94009598]
[1765704041078,0.001,3113.8,3113.7,5.43939598]
[1765704041390,0.001,3113.8,3113.7,5.89289598]
[1765704042478,0.001,3113.8,3113.7,4.67141319]
[1765704043358,0.001,3113.8,3113.7,4.21791319]
[1765704048591,0.0774,3113.8,3113.7,3.71861319]
[1765704049291,0.5463,3113.8,3113.7,3.71861319]
[1765704050484,0.0774,3113.8,3113.7,3.71861319]
[1765704050988,0.0774,3113.8,3113.7,4.67141319]
[1765704050989,0.001,3113.8,3113.7,4.67141319]
[1765704054099,0.001,3113.8,3113.7,9.0030507]
[1765704059099,0.0953,3113.8,3113.7,3.71861319]
[1765704064396,0.001,3113.8,3113.7,4.21461319]
[1765704064710,0.001,3113.8,3113.7,4.68831319]
[1765704068913,0.001,3113.8,3113.7,4.21461319]
[1765704072511,0.001,3113.8,3113.7,3.70761319]
[1765704072814,0.001,3113.8,3113.7,3.836189]
[1765704074414,0.001,3113.8,3113.7,3.340189]
[1765704076812,0.0953,3113.8,3113.7,3.340189]
[1765704078014,0.0953,3113.8,3113.7,7.6725255]
[1765704086717,0.5464,3113.8,3113.7,7.6725255]
[1765704088010,0.0953,3113.8,3113.7,7.6725255]
[1765704089394,0.0953,3113.8,3113.7,7.67266202]
[1765704094124,0.0953,3113.8,3113.7,3.340189]
[1765704100438,0.001,3113.8,3113.7,3.340189]
[1765704102437,0.0989,3113.8,3113.7,3.340189]
[1765704108840,0.001,3113.8,3113.7,3.340189]
[1765704112915,0.0989,3113.8,3113.7,3.340189]
[1765704118250,0.0989,3113.8,3113.7,7.67266202]
[1765704120548,0.001,3113.8,3113.7,7.67266202]
[1765704123250,0.0989,3113.8,3113.7,3.340189]
[1765704123455,0.5468,3113.8,3113.7,7.54408621]
[1765704124366,0.5468,3113.8,3113.7,7.54471031]
[1765704124659,0.0989,3113.8,3113.7,7.54471031]
[1765704125457,0.001,3113.8,3113.7,8.00951031]
[1765704125827,0.001,3113.8,3113.7,8.49871031]
[1765704129060,0.0809,3113.8,3113.7,3.21161319]
[1765704134070,0.0809,3113.8,3113.7,3.67801319]
[1765704136558,0.5463,3113.8,3113.7,3.67801319]
[1765704137256,0.0809,3113.8,3113.7,3.67801319]
[1765704137434,0.5463,3113.8,3113.7,3.67801319]
[1765704140074,0.5463,3113.8,3113.7,8.0107765]
[1765704144680,0.0809,3113.8,3113.7,8.0107765]
[1765704146883,0.001,3113.8,3113.7,8.4763765]
[1765704147181,0.001,3113.8,3113.7,8.9621765]
[1765704148176,0.0898,3113.8,3113.7,3.67801319]
[1765704152385,0.5464,3113.8,3113.7,3.67801319]
[1765704154515,0.0898,3113.8,3113.7,0.4664]
[1765704154661,0.84606143,3113.8,3113.7,0.4664]
[1765704159793,0.38946143,3113.8,3113.7,0.4664]
[1765704160004,0.77581884,3113.8,3113.7,0.4664]
[1765704160301,1.73841884,3113.8,3113.6,0.002]
[1765704160497,0.76456143,3113.7,3113.6,0.002]
[1765704160800,3.97617462,3113.7,3113.6,0.002]
[1765704161199,4.68526706,3113.7,3113.6,0.002]
[1765704163894,4.71732774,3113.7,3113.6,0.002]
[1765704173110,5.12283174,3113.7,3113.6,0.002]
[1765704173804,6.35082529,3113.7,3113.6,0.002]
[1765704174004,6.31876461,3113.7,3113.6,0.002]
[1765704176587,12.80876461,3113.7,3113.6,0.002]
[1765704177915,13.31476461,3113.7,3113.6,0.002]
[1765704184523,13.31576461,3113.7,3113.6,0.002]
[1765704189895,11.36348532,3113.7,3113.6,0.002]
[1765704190229,11.86948532,3113.7,3113.6,0.002]
[1765704193525,12.22446817,3113.7,3113.6,0.002]
[1765704195105,11.74086817,3113.7,3113.6,0.002]
[1765704196430,12.22446817,3113.7,3113.6,0.002]
[1765704199336,12.22401841,3113.7,3113.6,0.002]
[1765704199930,12.8044937,3113.7,3113.6,0.002]
[1765704201407,12.2984937,3113.7,3113.6,0.002]
[1765704201704,12.8044937,3113.7,3113.6,0.002]
[1765704203022,11.74041841,3113.7,3113.6,0.002]
[1765704203333,11.73581841,3113.7,3113.6,0.4753]
[1765704203527,10.50782486,3113.7,3113.6,0.4753]
[1765704204016,10.50782486,3113.7,3113.6,0.9348]
[1765704205231,4.01782486,3113.7,3113.6,0.9348]
[1765704205469,0.80621167,3113.7,3113.6,0.9348]
[1765704209246,4.01782486,3113.7,3113.6,0.9348]
[1765704211755,0.30021167,3113.7,3113.6,0.9348]
[1765704211955,0.80621167,3113.7,3113.6,0.9348]
[1765704213459,4.01782486,3113.7,3113.6,0.9348]
[1765704213956,0.80621167,3113.7,3113.6,0.9348]
[1765704218677,0.30021167,3113.7,3113.6,0.9348]
[1765704218854,0.80621167,3113.7,3113.6,0.9348]
[1765704219362,4.11411295,3113.7,3113.6,0.9348]
[1765704219758,4.11411295,3113.7,3113.6,0.4753]
[1765704220491,3.60811295,3113.7,3113.6,0.4753]
[1765704220664,4.11411295,3113.7,3113.6,0.4753]
[1765704221354,4.11414752,3113.7,3113.6,0.4753]
[1765704222346,0.80624624,3113.7,3113.6,0.963]
[1765704226362,4.01785943,3113.7,3113.6,0.963]
[1765704227066,4.01785943,3113.7,3113.6,0.4753]
[1765704228761,4.01785943,3113.7,3113.6,0.002]
[1765704228966,4.01785943,3113.7,3113.6,0.4899]
[1765704234475,4.75061629,3113.7,3113.6,0.4899]
[1765704236487,4.84491629,3113.7,3113.6,0.002]
[1765704236647,4.75061629,3113.7,3113.6,0.002]
[1765704236983,4.75061629,3113.7,3113.6,0.4524]
[1765704237193,4.75061629,3113.7,3113.6,0.9066]
[1765704240081,4.75061629,3113.7,3113.6,0.4524]
[1765704241890,9.7597463,3113.7,3113.5,0.002]
[1765704242181,0.405504,3112.8,3112.5,0.002]
[1765704242382,6.71139167,3112.7,3112.5,0.002]
[1765704242582,4.0559179,3112.7,3112.5,0.002]
[1765704243083,4.18459215,3112.7,3112.5,0.002]
[1765704243856,7.39723712,3112.7,3112.5,0.002]
[1765704244183,11.73149184,3112.7,3112.5,0.002]
[1765704244683,6.68825041,3112.7,3112.5,0.002]
[1765704245193,5.72665041,3112.7,3112.5,0.002]
[1765704245490,5.82814641,3112.7,3112.5,0.002]
[1765704246085,4.74067112,3112.7,3112.6,0.4524]
[1765704246288,3.51189121,3112.7,3112.6,0.9066]
[1765704246482,0.80624624,3112.7,3112.6,0.9066]
[1765704247065,4.01889121,3112.7,3112.6,0.9066]
[1765704247491,0.80624624,3112.7,3112.6,0.9066]
[1765704248587,4.01889121,3112.7,3112.6,0.9066]
[1765704248898,0.29924624,3112.7,3112.6,0.9066]
[1765704249086,0.507,3112.7,3112.6,0.9066]
[1765704249288,0.80624624,3112.7,3112.6,0.9066]
[1765704249596,0.507,3112.7,3112.6,0.9066]
[1765704249801,4.01889121,3112.7,3112.6,0.9066]
[1765704250995,0.80624624,3112.7,3112.6,0.9066]
[1765704251495,4.01889121,3112.7,3112.6,0.9066]
[1765704252680,0.80624624,3112.7,3112.6,0.9066]
[1765704253600,1.51593071,3112.9,3112.6,5.24085472]
[1765704253893,0.507,3112.8,3112.6,0.4562]
[1765704254094,0.507,3112.8,3112.6,0.002]
[1765704254499,4.72839202,3112.9,3112.7,0.4504]
[1765704254700,0.507,3112.8,3112.7,0.4504]
[1765704255202,3.71954176,3112.8,3112.7,0.4504]
[1765704255396,4.49253267,3112.8,3112.6,0.002]
[1765704255585,4.19444176,3112.8,3112.6,0.002]
[1765704258709,3.72054176,3112.8,3112.7,0.4504]
[1765704258909,0.80620275,3112.8,3112.7,5.23885472]
[1765704259112,0.508,3112.8,3112.7,5.23885472]
[1765704259407,0.80621388,3112.8,3112.7,5.23885472]
[1765704259705,0.508,3112.8,3112.7,5.23885472]
[1765704260119,0.80624035,3112.8,3112.7,5.23885472]
[1765704261911,0.80624035,3112.8,3112.7,0.9046]
[1765704267412,0.29924035,3112.8,3112.7,0.9046]
[1765704267624,0.80624035,3112.8,3112.7,0.9046]
[1765704267789,0.80624035,3112.8,3112.7,0.9481]
[1765704267992,0.80624035,3112.8,3112.7,8.49691505]
[1765704267993,0.001,3112.8,3112.7,8.49691505]
[1765704268207,0.508,3112.8,3112.7,8.91339969]
[1765704269908,0.001,3112.8,3112.7,8.91339969]
[1765704270108,0.508,3112.8,3112.7,8.91339969]
[1765704270305,0.001,3112.8,3112.7,8.91339969]
[1765704278796,0.001,3112.8,3112.7,7.99921505]
[1765704278990,0.001,3112.8,3112.7,8.49131505]
[1765704283524,0.001,3112.8,3112.7,9.07179034]
[1765704290710,0.001,3112.8,3112.7,13.40796042]
[1765704294844,0.001,3112.8,3112.7,9.07179034]
[1765704295142,0.001,3112.8,3112.7,10.62191962]
[1765704300666,0.001,3112.8,3112.7,10.6196864]
[1765704301918,0.001,3112.8,3112.7,10.1275864]
[1765704302231,0.0888,3112.8,3112.7,8.12705712]
[1765704302431,0.0888,3112.8,3112.7,3.79312026]
[1765704302616,0.0888,3112.8,3112.7,8.12705712]
[1765704304133,0.5465,3112.8,3112.7,8.12705712]
[1765704304834,0.5465,3112.8,3112.7,8.58095712]
[1765704304835,0.001,3112.8,3112.7,8.58095712]
[1765704307141,0.001,3112.8,3112.7,9.04395712]
[1765704308456,0.001,3112.8,3112.7,8.58095712]
[1765704308660,0.001,3112.8,3112.7,8.12705712]
[1765704310542,0.001,3112.8,3112.7,8.58095712]
[1765704311345,0.0888,3112.8,3112.7,8.12705712]
[1765704311744,0.5465,3112.8,3112.7,8.12705712]
[1765704315541,0.0888,3112.8,3112.7,8.12705712]
[1765704316537,0.001,3112.8,3112.7,9.04395712]
[1765704317432,0.001,3112.8,3112.7,8.58095712]
[1765704318362,0.0888,3112.8,3112.7,8.12705712]
[1765704322562,0.5465,3112.8,3112.7,8.12705712]
[1765704323169,0.0888,3112.8,3112.7,8.12705712]
[1765704323974,0.0888,3112.8,3112.7,8.12858112]
[1765704325856,0.5465,3112.8,3112.7,8.12858112]
[1765704327574,0.0888,3112.8,3112.7,8.12858112]
[1765704327748,0.5465,3112.8,3112.7,8.12858112]
[1765704328566,0.0888,3112.8,3112.7,8.12858112]
[1765704328877,0.84627847,3112.8,3112.6,0.002]
[1765704329080,0.30437847,3112.7,3112.6,0.002]
[1765704329372,0.77237847,3112.7,3112.6,0.002]
[1765704331282,0.30437847,3112.7,3112.6,0.002]
[1765704333673,0.77237847,3112.7,3112.6,0.002]
[1765704335072,0.30437847,3112.7,3112.6,0.002]
[1765704335257,0.29977847,3112.7,3112.6,0.002]
[1765704335658,0.38107847,3112.7,3112.6,0.002]
[1765704335979,0.38107847,3112.7,3112.6,4.33795994]
[1765704336476,0.38107847,3112.7,3112.6,7.55070812]
[1765704336673,0.80577847,3112.7,3112.6,8.02240812]
[1765704337051,0.80577847,3112.7,3112.6,7.55070812]
[1765704337377,0.88707847,3112.7,3112.6,7.55070812]
[1765704340061,0.80577847,3112.7,3112.6,7.55070812]
[1765704341080,0.78387847,3112.7,3112.6,7.55070812]
[1765704341272,0.506,3112.7,3112.6,8.02240812]
[1765704343082,0.9859,3112.7,3112.6,7.55070812]
[1765704346389,1.2852581,3112.7,3112.6,7.55070812]
[1765704347281,1.2852581,3112.7,3112.6,3.21474818]
[1765704347482,1.2852581,3112.7,3112.6,7.55070812]
[1765704347887,1.2852581,3112.7,3112.6,3.21474818]
[1765704348105,1.2852581,3112.7,3112.6,7.55070812]
[1765704353581,1.2852581,3112.7,3112.6,4.33795994]
[1765704353764,1.2852581,3112.7,3112.6,7.55070812]
[1765704355627,1.3547581,3112.7,3112.6,0.002]
[1765704356569,0.8488581,3112.7,3112.6,0.002]
[1765704357286,1.30568844,3112.7,3112.6,0.002]
[1765704361414,1.2987581,3112.7,3112.6,0.002]
[1765704361785,0.2993581,3112.7,3112.6,0.4845]
[1765704361986,0.001,3112.8,3112.6,4.18494818]
[1765704362196,0.508,3112.8,3112.7,4.81845994]
[1765704362498,0.80786388,3112.8,3112.7,5.30615994]
[1765704362907,0.508,3112.8,3112.7,5.30615994]
[1765704363137,0.508,3112.8,3112.7,6.27083203]
[1765704364621,0.80777154,3112.8,3112.7,9.483477]
[1765704367416,0.80777154,3112.8,3112.7,11.33397531]
[1765704367620,0.508,3112.8,3112.7,11.33397531]
[1765704371214,0.508,3112.8,3112.7,10.84575953]
[1765704371510,0.508,3112.8,3112.7,11.33345953]
[1765704372712,0.508,3112.8,3112.7,10.84575953]
[1765704373291,0.508,3112.8,3112.7,9.57573651]
[1765704374520,1.0014,3112.8,3112.7,8.51276122]
[1765704374727,1.30098185,3112.8,3112.7,7.54808913]
[1765704375632,1.0014,3112.8,3112.7,7.54808913]
[1765704375793,0.508,3112.8,3112.7,7.54808913]
[1765704376196,0.508,3112.8,3112.7,8.03058913]
[1765704380034,0.001,3112.8,3112.7,8.03058913]
[1765704380348,0.001,3112.8,3112.7,8.51828913]
[1765704381040,0.001,3112.8,3112.7,9.02428913]
[1765704383010,0.001,3112.8,3112.7,8.05408913]
[1765704383337,0.0564,3112.8,3112.7,7.54808913]
[1765704384751,0.0564,3112.8,3112.7,8.05408913]
[1765704385354,0.35609114,3112.8,3112.7,8.05408913]
[1765704385947,0.35609114,3112.8,3112.7,3.71864497]
[1765704386741,0.35609114,3112.8,3112.7,3.21264497]
[1765704386946,0.35609114,3112.8,3112.7,3.71864497]
[1765704389347,0.30069114,3112.8,3112.7,4.65894497]
[1765704392459,0.30088087,3112.8,3112.7,4.65894497]
[1765704396669,0.30088087,3112.8,3112.7,4.19204497]
[1765704396845,0.39578087,3112.8,3112.6,3.21470529]
[1765704397054,0.0959,3112.8,3112.6,3.72070529]
[1765704397766,0.001,3112.8,3112.7,3.21264497]
[1765704397944,0.0949,3112.7,3112.6,3.72070299]
[1765704398144,0.39477286,3112.7,3112.6,3.72070299]
[1765704398572,0.0949,3112.7,3112.6,3.72070299]
[1765704399780,0.001,3112.8,3112.6,4.19410299]
[1765704400855,0.3983059,3112.7,3112.6,3.21474818]
[1765704401553,0.3983059,3112.7,3112.6,0.002]
[1765704403571,0.8455059,3112.7,3112.6,0.002]
[1765704406682,0.84549027,3112.7,3112.6,0.002]
[1765704409259,0.39829027,3112.7,3112.6,0.002]
[1765704409579,0.84549027,3112.7,3112.6,0.002]
[1765704412470,1.26102709,3112.7,3112.6,0.002]
[1765704413060,4.47367206,3112.7,3112.6,0.002]
[1765704413561,1.26102709,3112.7,3112.6,0.002]
[1765704413790,4.47367206,3112.7,3112.6,0.002]
[1765704415186,1.26102709,3112.7,3112.6,0.002]
[1765704417463,0.81382709,3112.7,3112.6,0.002]
[1765704417682,1.26102709,3112.7,3112.6,0.002]
[1765704419976,4.47367206,3112.7,3112.6,0.002]
[1765704421578,1.26102709,3112.7,3112.6,0.002]
[1765704422794,0.84549027,3112.7,3112.6,0.002]
[1765704429107,0.39829027,3112.7,3112.6,0.002]
[1765704429276,0.80589027,3112.7,3112.6,0.002]
[1765704429902,0.87999027,3112.7,3112.6,0.002]
[1765704432419,1.35129027,3112.7,3112.6,0.002]
[1765704432604,1.81740358,3112.7,3112.6,0.002]
[1765704436011,5.03004855,3112.7,3112.6,0.002]
[1765704439989,5.03010086,3112.7,3112.6,0.002]
[1765704441517,1.81745589,3112.7,3112.6,0.002]
[1765704441714,1.34615589,3112.7,3112.6,0.002]
[1765704441917,0.76605589,3112.7,3112.6,0.4777]
[1765704442116,1.27205589,3112.7,3112.6,0.9326]
[1765704444427,1.27205589,3112.7,3112.6,0.4777]
[1765704445624,0.76605589,3112.7,3112.6,0.4777]
[1765704445926,0.80594258,3112.7,3112.6,0.4777]
[1765704447599,0.29994258,3112.7,3112.6,0.4777]
[1765704447814,0.80594258,3112.7,3112.6,0.9472]
[1765704451131,0.80594258,3112.7,3112.6,0.4777]
[1765704452305,0.80594258,3112.7,3112.6,0.9472]
[1765704452996,0.80594258,3112.7,3112.6,0.4777]
[1765704455034,0.80594258,3112.7,3112.6,0.9554]
[1765704455327,1.35114258,3112.7,3112.6,0.002]
[1765704455515,1.80761925,3112.7,3112.6,0.002]
[1765704455918,1.32131925,3112.7,3112.6,0.002]
[1765704457807,0.80594258,3112.7,3112.6,0.4857]
[1765704461410,0.80620388,3112.7,3112.6,0.4857]
[1765704463845,0.30020388,3112.7,3112.6,0.4857]
[1765704464150,0.80620388,3112.7,3112.6,0.9552]
[1765704464510,0.80620388,3112.7,3112.6,4.16794818]
[1765704464930,0.80620388,3112.7,3112.6,5.13279402]
[1765704465315,0.80620388,3112.7,3112.6,1.92004584]
[1765704467542,0.30020388,3112.7,3112.6,4.66329402]
[1765704467718,0.30020388,3112.7,3112.6,6.35450926]
[1765704468418,0.507,3112.8,3112.6,3.14176108]
[1765704468728,0.507,3112.8,3112.7,0.9532]
[1765704468937,0.80710407,3112.8,3112.7,0.9532]
[1765704469240,0.80710407,3112.8,3112.7,0.9907]
[1765704470652,0.0657578,3113.7,3113.0,0.4837]
[1765704470862,0.0657578,3113.7,3113.6,0.4837]
[1765704471248,0.0657578,3113.7,3113.6,0.12859234]
[1765704471558,0.3362578,3113.7,3113.6,0.12859234]
[1765704472146,0.0657578,3113.7,3113.6,0.61229234]
[1765704473614,0.0657578,3113.7,3113.6,3.82400868]
[1765704476547,0.0657578,3113.7,3113.6,4.29290868]
[1765704476736,0.0657578,3113.7,3113.6,5.53519016]
[1765704478316,0.0657578,3113.7,3113.6,9.86791996]
[1765704483269,0.0657578,3113.7,3113.6,8.62563848]
[1765704496839,0.0657578,3113.7,3113.6,8.49704614]
[1765704501274,0.0657578,3113.7,3113.6,8.62563476]
[1765704502470,0.0657578,3113.7,3113.6,12.95836456]
[1765704502773,0.0657578,3113.7,3113.6,8.62563476]
[1765704503076,0.0657578,3113.7,3113.6,10.18861032]
[1765704503458,0.0657578,3113.7,3113.6,14.52134012]
[1765704505170,0.0657578,3113.7,3113.6,15.11811541]
[1765704507960,0.0657578,3113.7,3113.6,10.7851546]
[1765704508349,0.0657578,3113.7,3113.6,10.2999546]
[1765704508870,0.0657578,3113.7,3113.6,5.96745581]
[1765704514178,0.3002578,3113.7,3113.6,5.48375581]
[1765704516283,0.0657578,3113.7,3113.6,5.94675581]
[1765704517956,0.0657578,3113.7,3113.6,5.48375581]
[1765704518986,0.3025578,3113.7,3113.6,5.48375581]
[1765704519171,0.3025578,3113.7,3113.6,3.92078025]
[1765704519575,0.7640578,3113.7,3113.6,3.34030496]
[1765704519886,1.06422695,3113.7,3113.6,3.34030496]
[1765704522658,1.06422695,3113.7,3113.6,3.21171634]
[1765704524690,1.06422695,3113.7,3113.5,3.21181949]
[1765704524859,0.7640578,3113.7,3113.5,3.21181949]
[1765704525158,0.0464,3113.6,3113.5,3.21181949]
[1765704528989,0.5079,3113.6,3113.5,3.21181949]
[1765704529759,0.80798786,3113.6,3113.3,0.58047529]
[1765704529959,0.0482,3113.4,3113.3,0.58047529]
[1765704534706,0.0482,3113.4,3113.3,3.79250111]
[1765704541594,0.0657578,3113.7,3113.3,7.46152693]
[1765704541795,0.5717578,3113.7,3113.6,0.457]
[1765704542006,1.35368867,3113.7,3113.3,7.00452693]
[1765704542210,0.4819,3113.6,3113.3,7.57628473]
[1765704544311,0.001,3113.4,3113.3,4.36425891]
[1765704545606,0.2616,3113.4,3113.3,4.36425891]
[1765704545827,0.2616,3113.4,3113.0,0.002]
[1765704545828,1.04134605,3113.4,3113.0,0.002]
[1765704546022,0.258,3113.1,3113.0,0.002]
[1765704546180,1.06404605,3113.1,3113.0,0.002]
[1765704546379,1.54594605,3113.1,3113.0,0.002]
[1765704546579,2.02175172,3113.1,3113.0,0.002]
[1765704549751,1.54085172,3113.1,3113.0,0.002]
[1765704549913,1.06504605,3113.1,3113.0,0.002]
[1765704550114,1.54694605,3113.1,3113.0,0.002]
[1765704552514,1.2469,3113.1,3113.0,0.002]
[1765704554847,0.258,3113.1,3113.0,0.002]
[1765704555051,0.7676,3113.1,3113.0,0.002]
[1765704556443,0.001,3113.4,3113.0,0.459]
[1765704556635,0.507,3113.1,3113.0,0.459]
[1765704559335,0.507,3113.1,3113.0,0.002]
[1765704559522,0.9637,3113.1,3113.0,0.002]
[1765704559736,1.2492,3113.1,3113.0,0.002]
[1765704560961,0.9647,3113.1,3113.0,0.002]
[1765704563739,1.2502,3113.1,3113.0,0.002]
[1765704567474,1.54952366,3113.1,3113.0,0.002]
[1765704569676,0.75702366,3113.1,3113.0,0.002]
[1765704569882,1.26402366,3113.1,3113.0,0.002]
[1765704573485,0.80732366,3113.1,3113.0,0.002]
[1765704574683,0.80732366,3113.1,3113.0,0.4934]
[1765704574977,0.80732366,3113.1,3113.0,0.9672]
[1765704575183,0.80732366,3113.1,3113.0,0.4934]
[1765704577470,0.80732366,3113.1,3113.0,0.9672]
[1765704577980,0.80632366,3113.1,3113.0,0.9672]
[1765704578779,0.80632366,3113.1,3113.0,0.4934]
[1765704579281,1.05662366,3113.1,3113.0,0.002]
[1765704580980,0.55062366,3113.1,3113.0,0.002]
[1765704581185,1.05662366,3113.1,3113.0,0.002]
[1765704581482,1.54652366,3113.1,3113.0,0.002]
[1765704582164,1.53249918,3113.1,3113.0,0.002]
[1765704582361,1.05762366,3113.1,3113.0,0.002]
[1765704582670,1.54752366,3113.1,3113.0,0.002]
[1765704586683,1.05762366,3113.1,3113.0,0.002]
[1765704590906,0.80732366,3113.1,3113.0,0.002]
[1765704591699,0.30032366,3113.1,3113.0,0.4934]
[1765704591872,0.80632366,3113.1,3113.0,0.9672]
[1765704592195,0.80720984,3113.1,3113.0,0.9672]
[1765704592502,1.05750984,3113.1,3113.0,0.002]
[1765704592877,1.54740984,3113.1,3113.0,0.002]
[1765704596467,1.05750984,3113.1,3113.0,0.002]
[1765704596671,0.80720984,3113.1,3113.0,0.002]
[1765704597001,1.08820984,3113.1,3113.0,0.002]
[1765704598406,1.54760984,3113.1,3113.0,0.002]
[1765704598574,2.03321352,3113.1,3113.0,0.002]
[1765704598775,5.2454457,3113.1,3113.0,0.002]
[1765704602010,5.6509497,3113.1,3113.0,0.002]
[1765704603782,5.65058998,3113.1,3113.0,0.002]
[1765704605509,46.23106527,3113.1,3113.0,0.002]
[1765704605712,19.75906527,3113.1,3113.0,0.002]
[1765704605921,0.58047529,3112.9,3112.6,0.002]
[1765704606108,0.29698809,3112.7,3112.6,0.002]
[1765704606307,1.10383821,3112.7,3112.6,0.002]
[1765704606497,2.1455135,3112.7,3112.6,0.002]
[1765704606700,5.35815847,3112.7,3112.6,0.002]
[1765704607630,5.76366247,3112.7,3112.6,0.002]
[1765704607928,7.79930507,3112.7,3112.6,0.002]
[1765704609230,12.13527568,3112.7,3112.6,0.002]
[1765704610628,42.13527568,3112.7,3112.6,0.002]
[1765704612328,37.29230507,3112.7,3112.6,0.002]
[1765704612486,16.99027568,3112.7,3112.6,0.002]
[1765704615313,16.02227568,3112.7,3112.6,0.002]
[1765704615512,15.51527568,3112.7,3112.6,0.002]
[1765704615723,15.80527568,3112.7,3112.6,0.002]
[1765704617801,15.80384423,3112.7,3112.6,0.002]
[1765704618103,15.93253504,3112.7,3112.6,0.002]
[1765704618918,42.26253504,3112.7,3112.6,0.002]
[1765704619630,42.26708878,3112.7,3112.6,0.002]
[1765704620719,48.75708878,3112.7,3112.6,0.002]
[1765704623937,41.65508878,3112.7,3112.6,0.002]
[1765704624126,48.75708878,3112.7,3112.6,0.002]
[1765704624325,33.95708878,3112.7,3112.6,0.002]
[1765704625934,34.34716866,3112.7,3112.6,0.002]
[1765704626836,49.14716866,3112.7,3112.6,0.002]
[1765704627531,48.75708878,3112.7,3112.6,0.002]
[1765704628035,0.410104,3112.6,3112.4,0.002]
[1765704628336,53.37623788,3112.5,3112.4,0.002]
[1765704628638,56.71781653,3112.5,3112.4,0.002]
[1765704628838,57.21061653,3112.5,3112.4,0.002]
[1765704630641,57.60069641,3112.5,3112.4,0.002]
[1765704631027,0.98597929,3112.4,3112.3,0.002]
[1765704631226,48.37670109,3112.4,3112.3,0.002]
[1765704631433,38.37670109,3112.4,3112.3,0.002]
[1765704631633,8.50542834,3112.4,3112.3,0.002]
[1765704631832,38.50542834,3112.4,3112.3,0.002]
[1765704632144,47.18962648,3112.4,3112.3,0.002]
[1765704632336,53.67962648,3112.4,3112.3,0.002]
[1765704632739,56.89258111,3112.4,3112.3,0.002]
[1765704633422,52.55048204,3112.4,3112.3,0.002]
[1765704634239,57.28266099,3112.4,3112.3,0.002]
[1765704634614,30.0,3112.3,3112.0,0.002]
[1765704634850,40.69821133,3112.2,3112.0,0.002]
[1765704635036,47.68101133,3112.2,3112.0,0.002]
[1765704635226,47.80974355,3112.2,3112.0,0.002]
[1765704635547,47.81040954,3112.2,3112.0,0.002]
[1765704635748,47.20068942,3112.2,3112.0,0.002]
[1765704635946,47.81040954,3112.2,3112.0,0.002]
[1765704636327,52.15250861,3112.2,3112.0,0.002]
[1765704636525,51.64550861,3112.2,3112.0,0.002]
[1765704636746,52.15250861,3112.2,3112.0,0.002]
[1765704637242,30.98597929,3111.9,3111.7,0.002]
[1765704637447,32.47903126,3111.9,3111.7,0.002]
[1765704637622,12.16203126,3111.9,3111.8,0.4884]
[1765704637822,12.2907552,3111.9,3111.8,0.4884]
[1765704638143,12.87123049,3111.9,3111.8,0.4884]
[1765704639424,16.08470135,3111.9,3111.8,0.4884]
[1765704640130,13.02070135,3111.9,3111.8,0.4884]
[1765704640451,18.65070135,3111.9,3111.8,0.9506]
[1765704640994,6.90870135,3111.9,3111.8,0.9506]
[1765704641156,5.13425875,3111.9,3111.8,0.9506]
[1765704642119,4.62725875,3111.9,3111.8,0.4884]
[1765704642446,5.13425875,3111.9,3111.8,0.9506]
[1765704642619,5.13425875,3111.9,3111.8,0.4884]
[1765704644656,5.37065875,3111.9,3111.8,0.002]
[1765704644859,0.98597929,3111.8,3111.7,0.002]
[1765704645059,1.38615204,3111.8,3111.7,0.002]
[1765704645356,1.87895204,3111.8,3111.7,0.002]
[1765704645658,2.00767556,3111.8,3111.7,0.002]
[1765704646858,5.22124969,3111.8,3111.7,0.002]
[1765704647165,6.76488353,3111.8,3111.7,0.002]
[1765704647526,6.76488353,3111.8,3111.2,1.04675706]
[1765704647527,0.861004,3111.3,3111.2,1.04675706]
[1765704647834,0.58047529,3111.2,3111.1,0.1985]
[1765704648033,1.79206395,3111.2,3111.1,0.1985]
[1765704648233,30.0,3111.1,3111.0,0.002]
[1765704648433,31.42718866,3111.1,3111.0,0.002]
[1765704648661,32.60766395,3111.1,3111.0,0.002]